[Event "Late-Titled-Tuesday-Blitz-April-02-2024"]
[Site "Chess.com"]
[Date "2024.04.02"]
[Round "1"]
[White "arenal72"]
[Black "NowInChess"]
[Result "1-0"]
[WhiteElo "2595"]
[BlackElo "2248"]
[TimeControl "180+1"]
[EndTime "14:07:01 PDT"]
[Termination "arenal72 won by resignation"]

1. Nf3 {[%clk 0:02:59.2]} 1... Nf6 {[%clk 0:02:59.3]} 2. g3 {[%clk 0:02:59.6]}
2... g6 {[%clk 0:02:59.6]} 3. Bg2 {[%clk 0:03:00.1]} 3... Bg7 {[%clk 0:03:00.2]}
4. O-O {[%clk 0:03:00.6]} 4... O-O {[%clk 0:03:00.6]} 5. d3 {[%clk 0:02:58.9]}
5... d6 {[%clk 0:03:00.8]} 6. Nbd2 {[%clk 0:02:59.4]} 6... e5 {[%clk 0:03:01]}
7. e4 {[%clk 0:02:55.4]} 7... Nc6 {[%clk 0:03:00.5]} 8. c3 {[%clk 0:02:54.8]}
8... a5 {[%clk 0:02:48.9]} 9. a4 {[%clk 0:02:52.9]} 9... h6 {[%clk 0:02:43.5]}
10. h3 {[%clk 0:02:43.5]} 10... Re8 {[%clk 0:02:40.4]} 11. Re1 {[%clk 0:02:41]}
11... Be6 {[%clk 0:02:39.9]} 12. d4 {[%clk 0:02:39.3]} 12... exd4 {[%clk
0:02:36.9]} 13. cxd4 {[%clk 0:02:39.8]} 13... d5 {[%clk 0:02:28.6]} 14. e5
{[%clk 0:02:37.2]} 14... Ne4 {[%clk 0:02:28.3]} 15. b3 {[%clk 0:02:27]} 15...
Nb4 {[%clk 0:02:27.4]} 16. Nxe4 {[%clk 0:02:09.4]} 16... dxe4 {[%clk 0:02:26.1]}
17. Rxe4 {[%clk 0:02:09.8]} 17... c5 {[%clk 0:02:11.4]} 18. Ba3 {[%clk
0:02:03.8]} 18... Bf5 {[%clk 0:01:55.4]} 19. Re2 {[%clk 0:01:59.3]} 19... cxd4
{[%clk 0:01:40]} 20. Bxb4 {[%clk 0:01:51.6]} 20... axb4 {[%clk 0:01:37.3]} 21.
Qxd4 {[%clk 0:01:45]} 21... Qxd4 {[%clk 0:01:29.1]} 22. Nxd4 {[%clk 0:01:45.9]}
22... Bxe5 {[%clk 0:01:28.6]} 23. Rae1 {[%clk 0:01:37.9]} 23... f6 {[%clk
0:01:09.2]} 24. Nxf5 {[%clk 0:01:34.7]} 24... gxf5 {[%clk 0:01:10.1]} 25. Bxb7
{[%clk 0:01:34.4]} 25... Rad8 {[%clk 0:01:03.9]} 26. Kg2 {[%clk 0:01:24.5]}
26... Re7 {[%clk 0:00:55.5]} 27. Ba6 {[%clk 0:01:22.5]} 27... Rc7 {[%clk
0:00:50.3]} 28. Bc4+ {[%clk 0:01:16.9]} 28... Kh7 {[%clk 0:00:49]} 29. f4 {[%clk
0:01:16.8]} 29... Bc3 {[%clk 0:00:48.4]} 30. Re7+ {[%clk 0:01:17.1]} 30... Rxe7
{[%clk 0:00:45.5]} 31. Rxe7+ {[%clk 0:01:18]} 31... Kh8 {[%clk 0:00:44.3]} 32.
h4 {[%clk 0:01:13.8]} 32... Rd2+ {[%clk 0:00:34]} 33. Re2 {[%clk 0:01:10.9]}
33... Rxe2+ {[%clk 0:00:32.8]} 34. Bxe2 {[%clk 0:01:11.8]} 34... Kg7 {[%clk
0:00:32.3]} 35. Bd3 {[%clk 0:01:07]} 35... Kg6 {[%clk 0:00:31.8]} 36. g4 {[%clk
0:01:06.8]} 36... h5 {[%clk 0:00:24.3]} 37. Bxf5+ {[%clk 0:01:05.4]} 37... Kh6
{[%clk 0:00:24.7]} 38. g5+ {[%clk 0:01:05.7]} 38... fxg5 {[%clk 0:00:23.7]} 39.
hxg5+ {[%clk 0:01:02.7]} 39... Kg7 {[%clk 0:00:23.7]} 40. a5 {[%clk 0:01:03]}
40... Bd4 {[%clk 0:00:21.6]} 41. a6 {[%clk 0:01:02.8]} 41... Kf7 {[%clk
0:00:19.6]} 42. Bd3 {[%clk 0:01:00]} 42... Kg7 {[%clk 0:00:18.5]} 43. f5 {[%clk
0:00:57]} 43... Be3 {[%clk 0:00:15.4]} 44. Kg3 {[%clk 0:00:55.5]} 44... Bd4
{[%clk 0:00:13.4]} 45. Kh4 {[%clk 0:00:55.3]} 45... Bf2+ {[%clk 0:00:12]} 46.
Kxh5 {[%clk 0:00:55.4]} 46... Bd4 {[%clk 0:00:11.8]} 47. f6+ {[%clk 0:00:53.8]}
47... Kf7 {[%clk 0:00:11.7]} 48. Bc4+ {[%clk 0:00:53.4]} 48... Kf8 {[%clk
0:00:07.8]} 49. g6 {[%clk 0:00:53.5]} 1-0

[Event "Late-Titled-Tuesday-Blitz-April-02-2024"]
[Site "Chess.com"]
[Date "2024.04.02"]
[Round "1"]
[White "Dedic8"]
[Black "GiorgianBarbosa"]
[Result "1-0"]
[WhiteElo "2859"]
[BlackElo "2482"]
[TimeControl "180+1"]
[EndTime "14:07:02 PDT"]
[Termination "Dedic8 won on time"]

1. d4 {[%clk 0:02:57.9]} 1... Nf6 {[%clk 0:02:59.9]} 2. c4 {[%clk 0:02:58.1]}
2... e6 {[%clk 0:03:00.8]} 3. Nc3 {[%clk 0:02:58.6]} 3... b6 {[%clk 0:03:01.2]}
4. e4 {[%clk 0:02:58.6]} 4... Bb7 {[%clk 0:03:00.4]} 5. Bd3 {[%clk 0:02:57]}
5... Bb4 {[%clk 0:03:00]} 6. Qe2 {[%clk 0:02:48.7]} 6... c5 {[%clk 0:02:57.8]}
7. a3 {[%clk 0:02:42.5]} 7... cxd4 {[%clk 0:02:55.6]} 8. axb4 {[%clk 0:02:42.6]}
8... dxc3 {[%clk 0:02:55.3]} 9. bxc3 {[%clk 0:02:43.5]} 9... O-O {[%clk
0:02:54.8]} 10. Nf3 {[%clk 0:02:38.9]} 10... d6 {[%clk 0:02:54.4]} 11. O-O
{[%clk 0:02:36.5]} 11... Nc6 {[%clk 0:02:53]} 12. Bf4 {[%clk 0:02:30.8]} 12...
a5 {[%clk 0:02:49.5]} 13. e5 {[%clk 0:02:20.3]} 13... dxe5 {[%clk 0:02:41.3]}
14. Nxe5 {[%clk 0:02:21.2]} 14... axb4 {[%clk 0:02:41.3]} 15. Nxc6 {[%clk
0:02:18.8]} 15... Bxc6 {[%clk 0:02:42.2]} 16. cxb4 {[%clk 0:02:11.1]} 16... Qe7
{[%clk 0:02:36.1]} 17. b5 {[%clk 0:01:42.5]} 17... Bb7 {[%clk 0:02:33.7]} 18.
Rad1 {[%clk 0:01:37.6]} 18... h6 {[%clk 0:02:23.6]} 19. Bd6 {[%clk 0:01:35.5]}
19... Qe8 {[%clk 0:02:21]} 20. Bc2 {[%clk 0:01:33.1]} 20... Rc8 {[%clk
0:02:12.3]} 21. Rfe1 {[%clk 0:01:18.8]} 21... Rd8 {[%clk 0:01:30]} 22. h3 {[%clk
0:01:09.7]} 22... Rd7 {[%clk 0:01:27.5]} 23. Qe3 {[%clk 0:01:00.5]} 23... Qa8
{[%clk 0:01:24.4]} 24. Bxf8 {[%clk 0:00:59.4]} 24... Kxf8 {[%clk 0:01:19.3]} 25.
f3 {[%clk 0:00:56.1]} 25... Qd8 {[%clk 0:01:13.5]} 26. Rxd7 {[%clk 0:00:54.7]}
26... Nxd7 {[%clk 0:01:14.4]} 27. Rd1 {[%clk 0:00:54.7]} 27... Qc7 {[%clk
0:01:09.3]} 28. Qd4 {[%clk 0:00:54.3]} 28... Ke7 {[%clk 0:00:59.1]} 29. Qxg7
{[%clk 0:00:54.3]} 29... Qxc4 {[%clk 0:00:57.9]} 30. Bg6 {[%clk 0:00:54.7]}
30... Qc5+ {[%clk 0:00:56.5]} 31. Kh1 {[%clk 0:00:55]} 31... Ne5 {[%clk
0:00:56.3]} 32. Bh5 {[%clk 0:00:47.4]} 32... Qc3 {[%clk 0:00:39.3]} 33. Bxf7
{[%clk 0:00:39.9]} 33... Nxf7 {[%clk 0:00:06.3]} 34. Qxc3 {[%clk 0:00:40.8]}
34... Bxf3 {[%clk 0:00:03.9]} 35. Qxf3 {[%clk 0:00:40.7]} 35... Ne5 {[%clk
0:00:03.4]} 36. Qb7+ {[%clk 0:00:40.7]} 36... Kf6 {[%clk 0:00:03.6]} 37. Rf1+
{[%clk 0:00:40.9]} 37... Kg6 {[%clk 0:00:01.5]} 38. Qe4+ {[%clk 0:00:40.6]} 1-0

[Event "Late-Titled-Tuesday-Blitz-April-02-2024"]
[Site "Chess.com"]
[Date "2024.04.02"]
[Round "1"]
[White "Ryan_Sowa"]
[Black "Felix-Rose"]
[Result "0-1"]
[WhiteElo "2620"]
[BlackElo "2341"]
[TimeControl "180+1"]
[EndTime "14:07:02 PDT"]
[Termination "Felix-Rose won by resignation"]

1. Nf3 {[%clk 0:03:00.9]} 1... Nf6 {[%clk 0:02:58.6]} 2. b3 {[%clk 0:03:01.5]}
2... c5 {[%clk 0:02:57.8]} 3. Bb2 {[%clk 0:03:02]} 3... Nc6 {[%clk 0:02:56.5]}
4. g3 {[%clk 0:03:02.4]} 4... e6 {[%clk 0:02:53.7]} 5. Bg2 {[%clk 0:03:01.9]}
5... d5 {[%clk 0:02:50.5]} 6. O-O {[%clk 0:03:01.9]} 6... Bd6 {[%clk 0:02:50.6]}
7. d3 {[%clk 0:03:02.2]} 7... O-O {[%clk 0:02:50.6]} 8. Nbd2 {[%clk 0:03:02.7]}
8... e5 {[%clk 0:02:48.2]} 9. e4 {[%clk 0:03:02.5]} 9... d4 {[%clk 0:02:38.6]}
10. Nc4 {[%clk 0:03:02]} 10... Bc7 {[%clk 0:02:38.3]} 11. a4 {[%clk 0:03:02.7]}
11... a6 {[%clk 0:02:37.7]} 12. Bc1 {[%clk 0:03:03.2]} 12... Rb8 {[%clk
0:02:37.7]} 13. Nh4 {[%clk 0:03:03]} 13... b5 {[%clk 0:02:35.6]} 14. axb5 {[%clk
0:03:03.9]} 14... axb5 {[%clk 0:02:36]} 15. Nd2 {[%clk 0:03:04.3]} 15... Be6
{[%clk 0:02:26.9]} 16. Nf5 {[%clk 0:03:03.8]} 16... Qd7 {[%clk 0:02:25.2]} 17.
g4 {[%clk 0:02:48.3]} 17... g6 {[%clk 0:02:09.3]} 18. h3 {[%clk 0:02:48.5]}
18... c4 {[%clk 0:01:59.2]} 19. Nf3 {[%clk 0:02:00.2]} 19... Rfc8 {[%clk
0:01:29.7]} 20. Bg5 {[%clk 0:01:58.3]} 20... Ne8 {[%clk 0:01:27.3]} 21. Nd2
{[%clk 0:01:42]} 21... f6 {[%clk 0:01:23]} 22. Bh4 {[%clk 0:01:41.4]} 22... gxf5
{[%clk 0:01:17.5]} 23. gxf5 {[%clk 0:01:42.3]} 23... Bf7 {[%clk 0:01:17.4]} 24.
Kh1 {[%clk 0:01:43]} 24... cxd3 {[%clk 0:01:14.4]} 25. cxd3 {[%clk 0:01:42.9]}
25... Kf8 {[%clk 0:01:10.2]} 26. Bf3 {[%clk 0:01:41.2]} 26... Ke7 {[%clk
0:01:09.5]} 27. Bh5 {[%clk 0:01:41.5]} 27... Nd6 {[%clk 0:01:02.4]} 28. Rg1
{[%clk 0:01:39.8]} 28... Nb4 {[%clk 0:00:59.3]} 29. Bxf7 {[%clk 0:01:38.5]}
29... Nxf7 {[%clk 0:00:59.2]} 30. Qh5 {[%clk 0:01:37.8]} 30... Nxd3 {[%clk
0:00:51.6]} 31. Bxf6+ {[%clk 0:01:36.8]} 31... Kd6 {[%clk 0:00:43.1]} 32. Rg7
{[%clk 0:01:36.8]} 32... Rf8 {[%clk 0:00:26.5]} 33. f4 {[%clk 0:01:37.4]} 33...
Nxf4 {[%clk 0:00:25.1]} 34. Qf3 {[%clk 0:01:19.5]} 34... Qc6 {[%clk 0:00:20.4]}
35. Rgg1 {[%clk 0:01:04.1]} 35... Qc3 {[%clk 0:00:20.3]} 36. Ra6+ {[%clk
0:00:51.5]} 36... Bb6 {[%clk 0:00:20]} 37. Bxe5+ {[%clk 0:00:48.8]} 37... Kxe5
{[%clk 0:00:20]} 38. Re1 {[%clk 0:00:48]} 38... Qxd2 {[%clk 0:00:11.2]} 39. Rf1
{[%clk 0:00:47.4]} 39... Qe3 {[%clk 0:00:10.2]} 40. Qd1 {[%clk 0:00:45.1]} 40...
Qxh3+ {[%clk 0:00:10.3]} 0-1

[Event "Late-Titled-Tuesday-Blitz-April-02-2024"]
[Site "Chess.com"]
[Date "2024.04.02"]
[Round "1"]
[White "Njal28"]
[Black "VinzentSpitzl"]
[Result "1-0"]
[WhiteElo "3056"]
[BlackElo "2541"]
[TimeControl "180+1"]
[EndTime "14:07:05 PDT"]
[Termination "Njal28 won by resignation"]

1. d4 {[%clk 0:03:00.9]} 1... Nf6 {[%clk 0:02:57.9]} 2. c4 {[%clk 0:02:50.2]}
2... e6 {[%clk 0:02:57.7]} 3. Nc3 {[%clk 0:02:46.3]} 3... d5 {[%clk 0:02:57.1]}
4. cxd5 {[%clk 0:02:41.4]} 4... exd5 {[%clk 0:02:56.7]} 5. Bg5 {[%clk
0:02:40.7]} 5... Be7 {[%clk 0:02:55.4]} 6. e3 {[%clk 0:02:41]} 6... h6 {[%clk
0:02:55]} 7. Bh4 {[%clk 0:02:40.9]} 7... O-O {[%clk 0:02:54.6]} 8. Bd3 {[%clk
0:02:40.9]} 8... c6 {[%clk 0:02:54.2]} 9. Nge2 {[%clk 0:02:38.3]} 9... Re8
{[%clk 0:02:54.2]} 10. Qc2 {[%clk 0:02:36]} 10... Nbd7 {[%clk 0:02:53.3]} 11.
O-O {[%clk 0:02:34.9]} 11... Ne4 {[%clk 0:02:53.1]} 12. Bxe7 {[%clk 0:02:32.3]}
12... Qxe7 {[%clk 0:02:52.6]} 13. Rae1 {[%clk 0:02:10.2]} 13... Ndf6 {[%clk
0:02:46.5]} 14. f3 {[%clk 0:01:57.9]} 14... Nxc3 {[%clk 0:02:38.2]} 15. Nxc3
{[%clk 0:01:58.8]} 15... c5 {[%clk 0:02:34.9]} 16. Qf2 {[%clk 0:01:52.6]} 16...
Bd7 {[%clk 0:02:30.1]} 17. Kh1 {[%clk 0:01:34]} 17... cxd4 {[%clk 0:02:27.5]}
18. exd4 {[%clk 0:01:34]} 18... Qd6 {[%clk 0:02:27.4]} 19. Qd2 {[%clk
0:01:22.9]} 19... Rxe1 {[%clk 0:02:22.8]} 20. Rxe1 {[%clk 0:01:23]} 20... Re8
{[%clk 0:02:23.3]} 21. Rxe8+ {[%clk 0:01:18.4]} 21... Bxe8 {[%clk 0:02:23.3]}
22. Qe3 {[%clk 0:01:06]} 22... Bc6 {[%clk 0:02:10.7]} 23. a3 {[%clk 0:01:00.4]}
23... Kf8 {[%clk 0:02:03.4]} 24. Kg1 {[%clk 0:01:00.2]} 24... Qe7 {[%clk
0:02:01.6]} 25. Kf2 {[%clk 0:00:58.1]} 25... Qxe3+ {[%clk 0:02:00.7]} 26. Kxe3
{[%clk 0:00:59]} 26... Ke7 {[%clk 0:02:00.9]} 27. g4 {[%clk 0:00:58.2]} 27...
Ne8 {[%clk 0:01:49.4]} 28. h4 {[%clk 0:00:51.9]} 28... Nd6 {[%clk 0:01:48.8]}
29. Kf4 {[%clk 0:00:49.7]} 29... Ke6 {[%clk 0:01:35]} 30. Nd1 {[%clk 0:00:44]}
30... Bb5 {[%clk 0:01:27.8]} 31. Bf5+ {[%clk 0:00:40.8]} 31... Nxf5 {[%clk
0:01:16.2]} 32. gxf5+ {[%clk 0:00:41.7]} 32... Kd6 {[%clk 0:01:16.4]} 33. Ne3
{[%clk 0:00:38.3]} 33... Bd3 {[%clk 0:01:11.6]} 34. f6 {[%clk 0:00:29.9]} 34...
g6 {[%clk 0:00:58.7]} 35. Ng4 {[%clk 0:00:29.8]} 35... h5 {[%clk 0:00:57.8]} 36.
Ne5 {[%clk 0:00:29.7]} 36... Ba6 {[%clk 0:00:44.2]} 37. Kg5 {[%clk 0:00:24.2]}
37... Ke6 {[%clk 0:00:44]} 38. Nxg6 {[%clk 0:00:18.1]} 38... Be2 {[%clk
0:00:14]} 39. Nf4+ {[%clk 0:00:17.1]} 1-0

[Event "Late-Titled-Tuesday-Blitz-April-02-2024"]
[Site "Chess.com"]
[Date "2024.04.02"]
[Round "1"]
[White "Road2GM3000"]
[Black "DamianoLew95"]
[Result "1-0"]
[WhiteElo "2471"]
[BlackElo "2802"]
[TimeControl "180+1"]
[EndTime "14:07:05 PDT"]
[Termination "Road2GM3000 won by resignation"]

1. d4 {[%clk 0:03:00.9]} 1... Nf6 {[%clk 0:02:59.6]} 2. c4 {[%clk 0:03:01.4]}
2... e6 {[%clk 0:03:00]} 3. Nc3 {[%clk 0:03:02.1]} 3... Bb4 {[%clk 0:03:00]} 4.
Nf3 {[%clk 0:03:02.9]} 4... d5 {[%clk 0:02:58.4]} 5. Bg5 {[%clk 0:03:02.3]} 5...
c6 {[%clk 0:02:50.6]} 6. cxd5 {[%clk 0:02:58.9]} 6... exd5 {[%clk 0:02:49.3]} 7.
e3 {[%clk 0:02:58.8]} 7... h6 {[%clk 0:02:48.9]} 8. Bh4 {[%clk 0:02:58.9]} 8...
g5 {[%clk 0:02:49.3]} 9. Bg3 {[%clk 0:02:59]} 9... Ne4 {[%clk 0:02:49.9]} 10.
Qb3 {[%clk 0:02:40.9]} 10... Qa5 {[%clk 0:02:42.8]} 11. Rc1 {[%clk 0:02:38.4]}
11... h5 {[%clk 0:02:33.8]} 12. Bxb8 {[%clk 0:01:53.6]} 12... Rxb8 {[%clk
0:02:31.1]} 13. Bd3 {[%clk 0:01:54.3]} 13... Be6 {[%clk 0:02:20]} 14. Ne5 {[%clk
0:01:45.7]} 14... Bd6 {[%clk 0:01:34.5]} 15. Bxe4 {[%clk 0:01:35]} 15... dxe4
{[%clk 0:01:29]} 16. Nc4 {[%clk 0:01:32.7]} 16... Bxc4 {[%clk 0:01:18.7]} 17.
Qxc4 {[%clk 0:01:32.5]} 17... Bb4 {[%clk 0:01:17.5]} 18. O-O {[%clk 0:01:31.2]}
18... Bxc3 {[%clk 0:01:16.5]} 19. Rxc3 {[%clk 0:01:29.5]} 19... O-O {[%clk
0:01:15.5]} 20. Qe2 {[%clk 0:01:22]} 20... h4 {[%clk 0:01:02.5]} 21. Rc5 {[%clk
0:01:12.5]} 21... Qd8 {[%clk 0:01:02.1]} 22. Qh5 {[%clk 0:01:13.2]} 22... f6
{[%clk 0:01:01.3]} 23. Qg6+ {[%clk 0:01:09.6]} 23... Kh8 {[%clk 0:01:01.5]} 24.
Qh6+ {[%clk 0:01:08.1]} 24... Kg8 {[%clk 0:01:01.6]} 25. Qg6+ {[%clk 0:01:08.3]}
25... Kh8 {[%clk 0:01:02.3]} 26. Qxe4 {[%clk 0:01:09]} 26... Qe8 {[%clk
0:00:59.8]} 27. Qg4 {[%clk 0:01:05.1]} 27... Qe7 {[%clk 0:00:55.7]} 28. h3
{[%clk 0:01:00.5]} 28... Rbd8 {[%clk 0:00:54.9]} 29. Rfc1 {[%clk 0:00:57.3]}
29... Rd6 {[%clk 0:00:54.2]} 30. b4 {[%clk 0:00:54.8]} 30... a6 {[%clk
0:00:53.8]} 31. a4 {[%clk 0:00:55]} 31... Ra8 {[%clk 0:00:41.1]} 32. b5 {[%clk
0:00:54.4]} 32... axb5 {[%clk 0:00:39.8]} 33. axb5 {[%clk 0:00:54.5]} 33... cxb5
{[%clk 0:00:32]} 34. Rc7 {[%clk 0:00:47.4]} 34... Qe8 {[%clk 0:00:23.8]} 35. Qf5
{[%clk 0:00:20]} 35... Qh5 {[%clk 0:00:24]} 36. Rc8+ {[%clk 0:00:16.4]} 36...
Rxc8 {[%clk 0:00:24.2]} 37. Rxc8+ {[%clk 0:00:17.3]} 37... Kg7 {[%clk
0:00:24.3]} 38. Rc7+ {[%clk 0:00:17.8]} 38... Kf8 {[%clk 0:00:20.9]} 39. Qc8+
{[%clk 0:00:17]} 39... Qe8 {[%clk 0:00:20.8]} 40. Qxb7 {[%clk 0:00:17.7]} 40...
Qe6 {[%clk 0:00:19.9]} 41. Rc8+ {[%clk 0:00:16.5]} 1-0

[Event "Late-Titled-Tuesday-Blitz-April-02-2024"]
[Site "Chess.com"]
[Date "2024.04.02"]
[Round "1"]
[White "Shiner22"]
[Black "Mackster23"]
[Result "0-1"]
[WhiteElo "2293"]
[BlackElo "2621"]
[TimeControl "180+1"]
[EndTime "14:07:09 PDT"]
[Termination "Mackster23 won by resignation"]

1. e4 {[%clk 0:03:00.5]} 1... c5 {[%clk 0:02:59.7]} 2. d4 {[%clk 0:02:59.5]}
2... cxd4 {[%clk 0:02:57.2]} 3. c3 {[%clk 0:02:59.6]} 3... Nf6 {[%clk
0:02:56.2]} 4. e5 {[%clk 0:02:59.9]} 4... Nd5 {[%clk 0:02:56.2]} 5. Nf3 {[%clk
0:03:00.5]} 5... d6 {[%clk 0:02:53.4]} 6. cxd4 {[%clk 0:02:57.8]} 6... Nc6
{[%clk 0:02:53.2]} 7. exd6 {[%clk 0:02:52.3]} 7... e6 {[%clk 0:02:47.1]} 8. Bd3
{[%clk 0:02:48.4]} 8... Bxd6 {[%clk 0:02:46.4]} 9. O-O {[%clk 0:02:48.4]} 9...
h6 {[%clk 0:02:34.5]} 10. Nc3 {[%clk 0:02:45]} 10... Nf4 {[%clk 0:02:26.3]} 11.
Bb5 {[%clk 0:02:41.7]} 11... O-O {[%clk 0:02:23.8]} 12. Ne4 {[%clk 0:02:24.9]}
12... Bc7 {[%clk 0:02:21.1]} 13. Be3 {[%clk 0:02:09.9]} 13... Bd7 {[%clk
0:02:17.1]} 14. Nc5 {[%clk 0:02:04.6]} 14... Bc8 {[%clk 0:02:15.5]} 15. Bxc6
{[%clk 0:01:56.3]} 15... bxc6 {[%clk 0:02:15.4]} 16. Ne5 {[%clk 0:01:54.5]}
16... Bxe5 {[%clk 0:01:58.9]} 17. dxe5 {[%clk 0:01:54.2]} 17... Nd5 {[%clk
0:01:59.2]} 18. Bd4 {[%clk 0:01:49.1]} 18... Rb8 {[%clk 0:01:57]} 19. a3 {[%clk
0:01:42.4]} 19... Nf4 {[%clk 0:01:54]} 20. Kh1 {[%clk 0:01:24.6]} 20... Qd5
{[%clk 0:01:38.1]} 21. Rg1 {[%clk 0:01:04.7]} 21... Ne2 {[%clk 0:01:04.9]} 22.
Qxe2 {[%clk 0:00:59]} 22... Qxd4 {[%clk 0:01:05.2]} 23. b4 {[%clk 0:00:58.9]}
23... a5 {[%clk 0:00:58.3]} 24. Rgd1 {[%clk 0:00:48.1]} 24... Qc3 {[%clk
0:00:56.2]} 25. Rdc1 {[%clk 0:00:39.5]} 25... Qd4 {[%clk 0:00:54.5]} 26. Nb3
{[%clk 0:00:30.6]} 26... Qf4 {[%clk 0:00:30.9]} 27. Nxa5 {[%clk 0:00:28.8]}
27... Bd7 {[%clk 0:00:31]} 28. Rc4 {[%clk 0:00:23.3]} 28... Qf5 {[%clk
0:00:29.1]} 29. Rd1 {[%clk 0:00:21.5]} 29... Rfd8 {[%clk 0:00:27.9]} 30. Rcd4
{[%clk 0:00:19.6]} 30... c5 {[%clk 0:00:11.9]} 31. Rxd7 {[%clk 0:00:19.4]} 31...
Rxd7 {[%clk 0:00:12.1]} 32. Rxd7 {[%clk 0:00:19]} 32... cxb4 {[%clk 0:00:12.8]}
33. Nc6 {[%clk 0:00:17.7]} 33... Re8 {[%clk 0:00:09.3]} 34. Ne7+ {[%clk
0:00:16.3]} 34... Rxe7 {[%clk 0:00:09.6]} 35. Rxe7 {[%clk 0:00:16.4]} 35... Qb1+
{[%clk 0:00:09.6]} 0-1

[Event "Late-Titled-Tuesday-Blitz-April-02-2024"]
[Site "Chess.com"]
[Date "2024.04.02"]
[Round "1"]
[White "PotapovaM"]
[Black "FairChess_on_YouTube"]
[Result "0-1"]
[WhiteElo "2538"]
[BlackElo "3053"]
[TimeControl "180+1"]
[EndTime "14:07:11 PDT"]
[Termination "FairChess_on_YouTube won on time"]

1. d4 {[%clk 0:02:59]} 1... Nf6 {[%clk 0:02:59.7]} 2. c4 {[%clk 0:02:59.2]} 2...
g6 {[%clk 0:02:58]} 3. Nc3 {[%clk 0:02:59.3]} 3... Bg7 {[%clk 0:02:58.5]} 4. e4
{[%clk 0:02:59.3]} 4... O-O {[%clk 0:02:59.1]} 5. h3 {[%clk 0:02:59.7]} 5... d6
{[%clk 0:02:53.2]} 6. Be3 {[%clk 0:03:00.1]} 6... Nc6 {[%clk 0:02:50.2]} 7. d5
{[%clk 0:02:59.3]} 7... Ne5 {[%clk 0:02:50.2]} 8. g4 {[%clk 0:02:56.9]} 8... c6
{[%clk 0:02:47.8]} 9. f4 {[%clk 0:02:52.1]} 9... Ned7 {[%clk 0:02:47.4]} 10.
Nge2 {[%clk 0:02:51.7]} 10... cxd5 {[%clk 0:02:45.9]} 11. cxd5 {[%clk
0:02:51.9]} 11... a6 {[%clk 0:02:43.6]} 12. Bg2 {[%clk 0:02:51.6]} 12... b5
{[%clk 0:02:41.1]} 13. Nd4 {[%clk 0:02:51.3]} 13... Bb7 {[%clk 0:02:40.7]} 14.
Nc6 {[%clk 0:02:43.8]} 14... Qe8 {[%clk 0:02:35.4]} 15. O-O {[%clk 0:02:24]}
15... e6 {[%clk 0:02:35.5]} 16. Bd4 {[%clk 0:02:07.1]} 16... e5 {[%clk 0:02:29]}
17. fxe5 {[%clk 0:02:02.8]} 17... Nxe5 {[%clk 0:02:29.1]} 18. Nxe5 {[%clk
0:02:01.3]} 18... dxe5 {[%clk 0:02:29.6]} 19. Bc5 {[%clk 0:02:01.5]} 19... Rc8
{[%clk 0:02:29.6]} 20. Bxf8 {[%clk 0:01:51.9]} 20... Qxf8 {[%clk 0:02:30.5]} 21.
Qe2 {[%clk 0:01:40.2]} 21... Ne8 {[%clk 0:02:29.9]} 22. Rac1 {[%clk 0:01:29.5]}
22... Bh6 {[%clk 0:02:27.1]} 23. Rc2 {[%clk 0:01:26.9]} 23... Qc5+ {[%clk
0:02:26.4]} 24. Kh1 {[%clk 0:01:26.8]} 24... b4 {[%clk 0:02:26.4]} 25. Rf3
{[%clk 0:01:11.7]} 25... Nd6 {[%clk 0:02:23]} 26. Qf1 {[%clk 0:00:42.9]} 26...
Bg5 {[%clk 0:02:02.3]} 27. a3 {[%clk 0:00:24.5]} 27... a5 {[%clk 0:01:56.1]} 28.
axb4 {[%clk 0:00:24.3]} 28... axb4 {[%clk 0:01:56.4]} 29. Qe1 {[%clk 0:00:06.9]}
29... h6 {[%clk 0:01:50.9]} 30. Qf1 {[%clk 0:00:07.4]} 30... Qa5 {[%clk
0:01:35.2]} 31. Qe1 {[%clk 0:00:07.1]} 31... Kg7 {[%clk 0:01:31.7]} 32. h4
{[%clk 0:00:07.8]} 32... Be7 {[%clk 0:01:29.5]} 33. Qf2 {[%clk 0:00:06.7]} 33...
bxc3 {[%clk 0:01:28.3]} 34. Rfxc3 {[%clk 0:00:06.7]} 34... Rxc3 {[%clk
0:01:26.9]} 35. Rxc3 {[%clk 0:00:07.6]} 35... Qd8 {[%clk 0:01:25.9]} 36. b4
{[%clk 0:00:07]} 36... Bxh4 {[%clk 0:01:25.5]} 37. Qc2 {[%clk 0:00:07.7]} 37...
Be1 {[%clk 0:01:23.8]} 38. Rh3 {[%clk 0:00:08.4]} 38... Bxb4 {[%clk 0:01:21.6]}
39. Qb2 {[%clk 0:00:08.6]} 39... Bc5 {[%clk 0:01:13.6]} 40. Qxe5+ {[%clk
0:00:08.3]} 40... Qf6 {[%clk 0:01:14.2]} 41. Qxf6+ {[%clk 0:00:05.3]} 41... Kxf6
{[%clk 0:01:15.1]} 42. Rxh6 {[%clk 0:00:05.6]} 42... Bc8 {[%clk 0:01:14.2]} 43.
Rh3 {[%clk 0:00:02.9]} 43... Bxg4 {[%clk 0:01:13.2]} 44. Rc3 {[%clk 0:00:03.2]}
44... Bd4 {[%clk 0:01:13.6]} 45. Rc6 {[%clk 0:00:03.4]} 45... Be5 {[%clk
0:01:14.2]} 46. Ra6 {[%clk 0:00:03.4]} 46... Kg5 {[%clk 0:01:13.7]} 47. Kg1
{[%clk 0:00:04.1]} 47... Kf4 {[%clk 0:01:14]} 48. Kf1 {[%clk 0:00:04.6]} 48...
Bd1 {[%clk 0:01:13]} 49. Ke1 {[%clk 0:00:04.5]} 49... Bc2 {[%clk 0:01:13.1]} 50.
Kd2 {[%clk 0:00:04.6]} 50... Bb3 {[%clk 0:01:13.2]} 51. Ra3 {[%clk 0:00:03.6]}
51... Nc4+ {[%clk 0:01:11.5]} 0-1